bitfinex-derivatives/quotes_ETHF0:USTF0_20240922
["timestamp","ask_amount","ask_price","bid_price","bid_amount"]
[1726971184584,3.0,2593.4,2593.0,4.5944785]
[1726971184889,3.26988,2593.4,2593.0,4.5944785]
[1726971185389,3.3871,2593.6,2593.0,4.8643885]
[1726971185587,0.26986,2593.5,2593.0,4.5944785]
[1726971185982,0.26986,2593.5,2593.0,4.8643885]
[1726971186187,0.26986,2593.5,2593.0,4.5944785]
[1726971186579,3.2078,2593.4,2593.0,1.3866785]
[1726971187589,3.2078,2593.4,2593.0,0.3836]
[1726971187895,3.2078,2593.4,2593.0,1.3866785]
[1726971189194,3.2078,2593.4,2593.0,1.6565885]
[1726971189501,3.2078,2593.4,2593.0,1.3866785]
[1726971190798,3.2078,2593.4,2593.2,0.26989]
[1726971190997,3.2078,2593.4,2593.0,4.5944785]
[1726971191391,3.2078,2593.4,2593.0,1.3866785]
[1726971191598,3.47767,2593.4,2593.0,1.3866785]
[1726971192503,3.2078,2593.4,2593.0,1.3866785]
[1726971192891,3.47768,2593.4,2593.0,1.3866785]
[1726971193098,0.3721,2593.3,2593.0,1.3866785]
[1726971193300,0.3721,2593.3,2593.1,1.0030785]
[1726971194010,0.3954,2593.2,2593.1,1.0030785]
[1726971194305,0.3954,2593.2,2593.1,2.31866851]
[1726971194605,0.3954,2593.2,2593.1,1.31559001]
[1726971194806,0.3954,2593.2,2593.1,2.32521891]
[1726971195000,0.3954,2593.2,2593.1,2.82008359]
[1726971195201,3.2078,2593.4,2593.1,6.67608359]
[1726971195409,3.2078,2593.4,2593.3,1.01029136]
[1726971197304,3.47767,2593.4,2593.3,1.01029136]
[1726971198205,3.2078,2593.4,2593.3,1.01029136]
[1726971199108,3.47767,2593.4,2593.3,1.01029136]
[1726971200601,3.47767,2593.4,2593.2,1.01029136]
[1726971201312,3.47767,2593.4,2593.3,1.01029136]
[1726971201607,3.2078,2593.4,2593.3,1.01029136]
[1726971201816,3.2078,2593.4,2593.3,2.70833239]
[1726971202108,3.2078,2593.4,2593.3,1.6980456]
[1726971202308,3.2078,2593.4,2593.3,3.20253918]
[1726971203607,3.2078,2593.4,2593.3,3.2029127]
[1726971207411,3.2078,2593.4,2593.3,3.70704574]
[1726971207605,3.2078,2593.4,2593.3,1.69841912]
[1726971208608,3.2078,2593.4,2593.3,1.69846291]
[1726971209510,4.5978,2593.4,2593.3,3.21620084]
[1726971209717,4.86767,2593.4,2593.3,3.21620084]
[1726971209914,4.5978,2593.4,2593.3,3.21620084]
[1726971210709,4.5978,2593.4,2593.3,2.83480084]
[1726971210911,4.86767,2593.4,2593.3,2.83480084]
[1726971211509,4.86767,2593.4,2593.3,2.32900595]
[1726971211703,4.5978,2593.4,2593.2,1.01194304]
[1726971211906,0.66478,2593.3,2593.2,1.01194304]
[1726971212107,0.66478,2593.3,2593.2,2.32922075]
[1726971212313,0.66478,2593.3,2593.2,1.01194304]
[1726971213714,0.26991,2593.0,2592.9,1.01194304]
[1726971214012,4.86771,2593.0,2592.9,1.01194304]
[1726971214317,4.86771,2593.0,2592.8,1.01194304]
[1726971214318,0.26992,2592.9,2592.8,1.01194304]
[1726971214718,0.26993,2592.8,2592.7,1.01194304]
[1726971215015,0.26995,2592.6,2592.5,1.01194304]
[1726971215205,0.26995,2592.6,2592.3,1.51773793]
[1726971215206,0.26996,2592.5,2592.4,1.01194304]
[1726971215406,0.26997,2592.4,2592.2,1.01194304]
[1726971215607,0.675,2592.2,2591.8,1.51773793]
[1726971215916,4.5978,2592.3,2591.4,1.51773793]
[1726971215917,0.27006,2591.6,2591.4,1.51773793]
[1726971216217,0.27006,2591.6,2590.8,2.00862662]
[1726971216218,10.0762,2591.5,2590.8,2.00862662]
[1726971216417,3.2078,2591.2,2590.9,1.3128558]
[1726971216715,6.2178,2591.2,2590.8,0.66614]
[1726971217110,6.2178,2591.2,2590.9,0.27013]
[1726971217305,6.2178,2591.2,2590.9,4.2334]
[1726971217306,3.2078,2591.2,2590.9,4.2334]
[1726971217515,3.2078,2591.5,2591.0,3.8592]
[1726971217719,3.2078,2591.5,2590.9,0.3742]
[1726971217720,3.01,2591.4,2590.9,0.3742]
[1726971217916,3.01,2591.2,2590.9,0.3742]
[1726971218313,0.27008,2591.4,2590.9,0.3742]
[1726971218314,3.01,2591.4,2590.9,0.3742]
[1726971218513,3.01,2591.2,2590.7,3.2078]
[1726971218816,3.01,2591.2,2590.5,0.27017]
[1726971218817,3.01,2591.0,2590.5,0.27017]
[1726971219021,3.01,2591.0,2590.6,0.3742]
[1726971219210,3.01,2591.0,2590.4,0.3978]
[1726971219519,3.01,2591.0,2590.4,0.66798]
[1726971219520,3.2078,2590.9,2590.4,0.66798]
[1726971219822,3.2078,2590.9,2590.4,0.3978]
[1726971220122,3.01,2591.1,2590.4,3.6056]
[1726971220716,3.01,2591.1,2590.5,0.27017]
[1726971221213,3.01,2591.1,2590.4,3.87578]
[1726971221214,3.01,2591.0,2590.4,3.87578]
[1726971221414,3.28012,2591.0,2590.4,3.6056]
[1726971221814,6.2178,2590.8,2590.4,0.3978]
[1726971222709,8.7798,2590.8,2590.2,1.0151]
[1726971223625,0.27015,2590.7,2590.2,0.7449]
[1726971223822,8.7798,2590.8,2590.2,0.7449]
[1726971224024,3.01,2590.6,2590.2,1.0151]
[1726971224522,3.01,2590.6,2590.2,0.3742]
[1726971224822,3.28017,2590.6,2590.2,0.3742]
[1726971225022,3.01,2590.3,2590.2,0.3742]
[1726971225415,7.141,2590.3,2590.0,0.2]
[1726971225619,3.01,2590.3,2590.0,0.2]
[1726971227618,5.69,2590.3,2590.0,0.2]
[1726971227919,3.01,2590.1,2590.0,0.2]
[1726971228125,3.478,2590.2,2590.0,0.2]
[1726971228316,3.2078,2590.1,2590.0,0.2]
[1726971228515,5.691,2590.3,2590.0,0.2]
[1726971228725,5.691,2590.3,2590.0,0.47022]
[1726971229024,3.01,2590.3,2590.0,0.2]
[1726971229920,5.8888,2590.4,2590.0,0.47022]
[1726971230251,3.2078,2590.4,2590.0,0.2]
[1726971230422,3.01,2590.5,2590.0,0.2]
[1726971230829,3.01,2590.5,2590.0,0.47022]
[1726971231121,3.28017,2590.5,2590.0,0.2]
[1726971231319,3.01,2590.5,2590.0,0.2]
[1726971231524,3.2078,2590.4,2590.0,0.47022]
[1726971231729,3.01,2590.5,2590.0,0.47022]
[1726971231924,3.5966,2590.7,2590.1,0.27021]
[1726971231925,3.86676,2590.7,2590.1,0.27021]
[1726971232126,9.55776,2590.7,2590.1,0.27021]
[1726971232625,9.55776,2590.7,2590.0,3.4078]
[1726971232626,9.2876,2590.7,2590.0,3.4078]
[1726971232823,9.55775,2590.7,2590.1,0.27021]
[1726971233220,9.2876,2590.7,2590.2,0.3936]
[1726971233529,9.2876,2590.7,2590.3,0.3831]
[1726971234019,6.6066,2590.7,2590.3,0.3831]
[1726971234223,6.6066,2590.7,2590.3,0.65329]
[1726971234617,6.2178,2590.7,2590.4,0.3748]
[1726971235424,6.48796,2590.7,2590.4,0.3748]
[1726971235628,3.01,2590.5,2590.3,0.3831]
[1726971235825,0.27018,2590.4,2590.3,0.3831]
[1726971236517,3.28018,2590.5,2590.3,0.3831]
[1726971237030,3.01,2590.5,2590.3,0.3831]
[1726971237225,3.28018,2590.5,2590.3,0.3831]
[1726971237529,0.2702,2590.3,2590.0,0.2]
[1726971237730,0.1742,2590.5,2590.0,0.47022]
[1726971238025,3.28021,2590.1,2590.0,0.2]
[1726971238227,6.48801,2590.1,2590.0,0.2]
[1726971238728,16.34881,2590.1,2590.0,0.2]
[1726971238928,0.27024,2589.9,2589.5,3.47808]
[1726971239125,3.01,2589.7,2589.5,3.47808]
[1726971239327,3.01,2589.7,2589.2,0.7346]
[1726971239721,3.01,2589.7,2589.5,0.27028]
[1726971240123,3.01,2589.7,2589.2,0.7346]
[1726971240326,3.01,2589.7,2589.4,0.27028]
[1726971240634,3.01,2589.7,2589.5,0.27028]
[1726971241329,3.01,2589.7,2589.4,0.27028]
[1726971241525,3.2078,2589.8,2589.4,0.27028]
[1726971241726,3.2078,2589.8,2589.3,0.27029]
[1726971241727,3.47805,2589.8,2589.3,0.27029]
[1726971242125,2.681,2590.3,2589.4,3.2078]
[1726971242324,4.123,2590.5,2589.7,3.2078]
[1726971242520,3.35327,2590.6,2590.1,0.27021]
[1726971242521,0.4021,2590.6,2590.1,0.27021]
[1726971242828,0.4021,2590.6,2590.0,3.2078]
[1726971243029,0.4021,2590.6,2590.2,0.2702]
[1726971243431,0.4021,2590.6,2590.0,3.2078]
[1726971243432,2.682,2590.9,2590.4,0.27018]
[1726971243636,2.682,2590.9,2590.5,0.3935]
[1726971243834,3.583,2591.0,2590.5,0.66367]
[1726971244035,3.28012,2591.1,2590.5,0.66367]
[1726971244036,9.16989,2591.3,2590.6,3.2078]
[1726971244222,8.8998,2591.3,2590.8,0.27014]
[1726971244422,0.27012,2591.1,2590.6,3.2078]
[1726971244626,0.27012,2591.0,2590.6,3.2078]
[1726971244825,3.28011,2591.1,2590.6,0.27016]
[1726971245033,3.01,2591.1,2590.5,0.3935]
[1726971245346,3.28012,2591.1,2590.6,0.27016]
[1726971245631,0.3752,2591.2,2590.8,0.27014]
[1726971245836,0.3752,2591.2,2590.9,0.3643]
[1726971246332,0.3752,2591.2,2590.5,0.3935]
[1726971246333,0.27013,2591.0,2590.5,0.3935]
[1726971246633,0.27013,2591.0,2590.5,0.774]
[1726971246634,3.2078,2591.0,2590.5,0.774]
[1726971246833,0.3752,2591.2,2590.7,0.27014]
[1726971247233,0.6453,2591.2,2590.7,0.27014]
[1726971247537,0.6453,2591.2,2590.6,0.27016]
[1726971248125,0.3752,2591.2,2590.7,0.27015]
[1726971248329,0.6453,2591.2,2590.6,0.27015]
[1726971248739,3.28012,2591.1,2590.5,4.25197]
[1726971249335,3.01,2591.1,2590.7,0.27015]
[1726971249540,3.01,2591.1,2590.6,0.27016]
[1726971250342,3.01,2591.1,2590.5,3.9818]
[1726971250535,3.28011,2591.1,2590.5,3.9818]
[1726971250740,3.28011,2591.1,2590.5,4.25197]
[1726971251232,3.28011,2591.1,2590.6,0.27016]
[1726971251636,5.8888,2591.3,2590.8,3.2078]
[1726971251637,3.2078,2591.3,2590.8,3.2078]
[1726971251838,3.2078,2591.3,2590.8,3.47794]
[1726971252238,6.2178,2591.3,2590.8,3.47794]
[1726971252540,3.2078,2591.0,2590.5,0.774]
[1726971252743,3.47792,2591.0,2590.5,1.04417]
[1726971252945,3.5883,2591.0,2590.6,0.27016]
[1726971253344,0.3805,2591.0,2590.6,0.27016]
[1726971253843,0.3805,2591.0,2590.5,0.774]
[1726971254244,0.3805,2591.0,2590.6,0.27016]
[1726971254935,0.3805,2591.0,2590.5,0.774]
[1726971255137,0.3805,2591.0,2590.6,0.27016]
[1726971256044,3.5883,2591.0,2590.7,0.27015]
[1726971256239,0.3805,2591.0,2590.5,0.774]
[1726971256434,6.2178,2591.3,2591.0,0.27012]
[1726971256435,3.2078,2591.3,2591.0,0.27012]
[1726971256640,3.2078,2591.3,2590.8,3.01]
[1726971256841,3.2078,2591.3,2591.1,0.2701]
[1726971257039,0.27006,2591.6,2591.2,0.765]
[1726971257238,3.6055,2591.7,2591.2,1.0351]
[1726971257641,3.6055,2591.7,2591.2,0.765]
[1726971258448,3.87555,2591.7,2591.2,1.03509]
[1726971258639,3.6055,2591.7,2591.3,0.27009]
[1726971258951,3.6055,2591.7,2591.2,0.765]
[1726971259247,3.6055,2591.7,2591.4,0.27007]
[1726971259744,3.2078,2591.7,2591.2,0.765]
[1726971259948,3.2078,2591.7,2591.4,0.27008]
[1726971260451,3.2078,2591.7,2591.5,0.27006]
[1726971261147,3.2078,2591.7,2591.2,6.412]
[1726971261353,0.3829,2591.9,2591.5,0.27006]
[1726971261549,3.2078,2592.1,2591.6,3.01]
[1726971261742,0.3823,2592.3,2591.7,0.3992]
[1726971261948,0.3823,2592.3,2592.0,0.27001]
[1726971262254,3.2078,2592.4,2592.1,3.8576]
[1726971262550,3.2078,2592.4,2591.9,6.2178]
[1726971262858,3.2078,2592.4,2592.0,0.27001]
[1726971263053,3.2078,2592.4,2592.1,0.27001]
[1726971263249,3.27995,2592.7,2592.3,3.01]
[1726971263250,3.2078,2592.7,2592.3,3.01]
[1726971263555,3.2078,2592.7,2592.4,1.173]
[1726971264046,0.3823,2593.1,2592.7,0.26994]
[1726971264247,1.98585659,2593.6,2593.0,3.01]
[1726971264248,3.2078,2593.6,2593.0,3.01]
[1726971264447,3.5951,2593.6,2593.1,0.2699]
[1726971264650,3.5951,2593.6,2593.1,0.382]
[1726971264850,3.5951,2593.6,2593.2,0.381]
[1726971265154,3.2078,2593.6,2593.2,0.381]
[1726971266050,3.2078,2593.6,2593.3,0.26988]
[1726971266249,3.2078,2593.6,2593.2,0.773]
[1726971266447,3.2078,2593.6,2593.2,1.04289]
[1726971266843,3.2078,2593.6,2593.2,0.773]
[1726971267050,3.2078,2593.6,2593.2,1.04289]
[1726971267247,3.2078,2593.6,2593.3,4.12588]
[1726971267457,3.3973,2594.0,2593.3,3.856]
[1726971267655,3.3973,2594.0,2593.2,0.773]
[1726971267656,3.2078,2593.8,2593.2,0.773]
[1726971267853,3.2078,2593.8,2593.3,0.26988]
[1726971268151,3.2078,2593.8,2593.4,0.26986]
[1726971268353,0.3873,2594.0,2593.5,0.26985]
[1726971268748,0.3873,2594.0,2593.4,3.01]
[1726971268950,0.3873,2594.0,2593.3,3.47768]
[1726971269150,0.3873,2594.0,2593.4,0.26987]
[1726971269655,0.65712,2594.0,2593.3,3.2078]
[1726971269858,3.66712,2594.0,2593.3,5.8438]
[1726971270055,0.26982,2593.9,2593.3,5.8438]
[1726971270258,3.2078,2593.9,2593.2,0.773]
[1726971270453,3.47763,2593.9,2593.2,0.773]
[1726971270762,3.47762,2593.9,2593.2,1.04288]
[1726971270958,0.26983,2593.8,2593.2,0.773]
[1726971271256,3.2078,2593.6,2593.2,0.773]
[1726971271560,3.47765,2593.6,2593.2,0.381]
[1726971271762,3.2078,2593.6,2593.2,0.381]
[1726971272257,3.47765,2593.6,2593.2,0.381]
[1726971272560,3.2078,2593.6,2593.2,0.381]
[1726971273160,0.3728,2593.5,2593.2,0.65089]
[1726971273355,0.3728,2593.5,2593.2,0.381]
[1726971274256,3.2078,2593.6,2593.2,0.381]
[1726971274562,0.3893,2593.9,2592.7,0.3898]
[1726971274563,3.47769,2593.3,2592.7,3.3998]
[1726971274864,3.47769,2593.3,2592.7,6.3999]
[1726971275158,3.47769,2593.3,2592.7,3.7649]
[1726971275159,3.2078,2593.3,2592.7,3.7649]
[1726971275458,0.3893,2593.2,2592.8,0.26992]
[1726971275663,3.2078,2593.4,2593.0,0.26991]
[1726971276762,3.2078,2593.4,2593.2,0.26989]
[1726971277161,3.2078,2593.4,2593.3,6.866]
[1726971277457,3.2078,2593.4,2593.3,7.13588]
[1726971278157,0.3893,2593.7,2593.3,7.13588]
[1726971278368,0.3893,2593.7,2593.3,3.27988]
[1726971278561,0.3893,2593.7,2593.3,3.01]
[1726971279062,0.3893,2593.7,2593.3,3.27988]
[1726971279255,0.3893,2593.7,2593.3,3.01]
[1726971279456,3.2078,2593.6,2593.1,0.383]
[1726971280167,3.2078,2593.6,2592.9,2.635]
[1726971280168,0.26987,2593.5,2592.9,0.26992]
[1726971280361,3.2078,2593.3,2592.9,0.26992]
[1726971282558,0.26985,2593.6,2593.1,0.2699]
[1726971282869,3.2078,2593.4,2593.1,0.2699]
[1726971283964,3.2078,2593.4,2593.3,3.01]
[1726971284155,3.2078,2593.4,2593.3,6.866]
[1726971285858,3.2078,2593.4,2593.3,3.01]
[1726971286060,3.2078,2593.4,2593.3,6.866]
[1726971287867,3.86694,2593.7,2593.3,6.866]
[1726971288064,3.2078,2593.7,2593.3,3.27988]
[1726971288267,3.2078,2593.7,2593.4,0.3832]
[1726971288662,3.2078,2593.7,2593.4,0.65307]
[1726971289063,3.2078,2593.7,2593.4,0.3832]
[1726971291163,3.2078,2593.7,2593.4,0.65307]
[1726971291372,3.2078,2593.7,2593.4,0.3832]
[1726971292372,3.2078,2593.7,2593.4,0.65307]
[1726971296779,3.47764,2593.7,2593.4,0.65307]
[1726971296976,3.2078,2593.7,2593.2,0.3709]
[1726971297181,3.2078,2593.4,2593.2,0.3709]
[1726971297368,0.26988,2593.4,2593.2,0.3709]
[1726971297883,3.2078,2593.4,2593.2,0.3709]
[1726971298086,3.2078,2593.7,2593.2,0.3709]
[1726971298381,3.47764,2593.7,2593.3,0.26987]
[1726971298582,3.47764,2593.7,2593.3,0.66217]
[1726971300183,3.2078,2593.7,2593.3,0.66217]
[1726971300382,3.2078,2593.7,2593.5,3.01]
[1726971300608,3.2078,2593.7,2593.6,0.4003]
[1726971300990,0.26986,2593.6,2593.3,0.3923]
[1726971301191,3.2078,2593.7,2593.2,0.3709]
[1726971301388,3.2078,2593.7,2593.0,0.4003]
[1726971301577,0.26989,2593.3,2593.0,0.4003]
[1726971301782,0.67463,2593.6,2592.5,3.01]
[1726971301783,3.2078,2593.1,2592.5,3.01]
[1726971301978,0.67479,2593.0,2592.4,3.2078]
[1726971302191,3.47776,2592.6,2592.3,4.4742]
[1726971302381,0.3825,2592.5,2592.3,4.4742]
[1726971302585,0.3825,2592.5,2592.3,0.3722]
[1726971302982,0.3825,2592.5,2592.3,3.65218]
[1726971303181,0.3825,2592.5,2592.3,3.3822]
[1726971303482,0.3825,2592.5,2592.3,3.65218]
[1726971304498,3.2078,2592.7,2592.3,3.3822]
[1726971304797,4.123,2593.2,2592.8,0.26993]
[1726971304986,5.19365659,2593.3,2592.9,3.7469]
[1726971304987,3.47769,2593.3,2592.9,3.7469]
[1726971305185,3.2078,2593.3,2592.9,3.7469]
[1726971305384,0.3751,2593.5,2593.1,0.2699]
[1726971305589,2.36095659,2593.5,2593.0,0.65961]
[1726971305890,3.47767,2593.4,2593.0,0.3897]
[1726971306088,3.2078,2593.4,2593.0,0.3897]
[1726971306298,5.19365659,2593.7,2593.5,0.26985]
[1726971306484,3.2078,2593.7,2593.6,0.7603]
[1726971307091,3.2078,2593.7,2593.2,3.01]
[1726971307389,3.2078,2593.7,2593.2,0.3706]
[1726971307390,3.5908,2593.7,2593.2,0.3706]
[1726971307589,0.26986,2593.6,2593.2,0.3706]
[1726971307793,3.5908,2593.7,2593.2,0.3706]
[1726971307794,3.86064,2593.7,2593.2,0.3706]
[1726971307999,3.86064,2593.7,2593.2,0.64049]
[1726971308201,3.2078,2593.4,2593.2,0.3706]
[1726971308500,3.2078,2593.4,2592.9,1.86216403]
[1726971308501,0.26988,2593.3,2592.9,0.3663]
[1726971308710,0.26988,2593.3,2592.9,0.7513]
[1726971308997,3.2078,2593.1,2592.7,1.76580403]
[1726971309227,0.26989,2593.3,2592.8,0.26993]
[1726971309493,0.26989,2593.3,2592.9,0.26992]
[1726971309494,3.2078,2593.2,2592.9,0.26992]
[1726971309900,3.47769,2593.2,2592.8,4.77579403]
[1726971310396,0.26991,2593.0,2592.8,4.50586403]
[1726971310601,3.2078,2593.2,2592.7,1.49586403]
[1726971310799,3.2078,2593.2,2592.6,0.7864]
[1726971310800,3.2078,2593.2,2592.6,2.28226403]
[1726971310992,3.2078,2593.5,2593.1,0.2699]
[1726971311196,3.2078,2593.5,2593.2,0.383]
[1726971311494,3.47766,2593.5,2593.2,0.383]
[1726971311895,3.2078,2593.5,2593.2,0.383]
[1726971312500,3.47766,2593.5,2593.2,0.383]
[1726971313403,3.2078,2593.5,2593.2,0.383]
[1726971313616,3.2078,2593.5,2593.4,0.26987]
[1726971313903,3.2078,2593.5,2593.4,1.57411109]
[1726971314106,3.2078,2593.5,2593.4,0.26987]
[1726971315899,3.2078,2593.9,2593.4,0.26987]
[1726971316301,0.67458,2593.8,2593.2,0.383]
[1726971316502,3.2078,2593.6,2593.2,0.383]
[1726971317106,3.47765,2593.6,2593.2,0.383]
[1726971317906,2.25568659,2593.8,2593.2,3.393]
[1726971318201,3.47763,2593.9,2593.5,3.01]
[1726971318504,0.26983,2593.8,2593.5,3.01]
[1726971318703,0.26983,2593.8,2593.3,3.27987]
[1726971318996,0.26983,2593.8,2593.3,3.01]
[1726971319198,0.26984,2593.7,2593.3,3.01]
[1726971319399,3.47766,2593.6,2593.2,0.383]
[1726971319807,0.3776,2593.5,2593.2,0.383]
[1726971320798,0.3776,2593.5,2593.3,3.01]
[1726971320995,0.26983,2593.8,2593.3,3.01]
[1726971321210,3.2078,2593.6,2593.3,3.01]
[1726971321399,0.3776,2593.8,2593.3,3.01]
[1726971321703,0.3776,2593.8,2593.5,3.01]
[1726971322401,1.98585659,2594.4,2593.7,3.01]
[1726971322603,0.65367,2594.4,2594.1,3.01]
[1726971322808,0.3839,2594.4,2594.1,3.01]
[1726971323307,0.3839,2594.4,2594.1,3.4108]
[1726971323893,0.3839,2594.4,2594.1,0.4008]
[1726971324297,3.2078,2594.5,2594.1,0.4008]
[1726971324501,3.2078,2594.5,2594.1,0.67059]
[1726971324694,3.2078,2594.5,2594.1,0.4008]
[1726971324900,3.2078,2594.5,2594.1,0.67059]
[1726971325502,3.2078,2594.5,2594.1,0.4008]
[1726971325697,3.47756,2594.5,2594.1,0.4008]
[1726971325895,3.2078,2594.5,2594.1,0.4008]
[1726971326509,3.2078,2594.5,2594.1,0.67059]
[1726971328098,3.2078,2594.5,2594.3,0.26977]
[1726971328299,0.65363,2594.8,2594.2,0.26978]
[1726971328500,3.5917,2594.8,2594.2,0.26978]
[1726971328710,3.2078,2594.5,2594.3,0.26978]
[1726971328901,3.2078,2595.1,2594.4,4.35137]
[1726971329197,1.98585659,2595.4,2594.9,3.2078]
[1726971329399,3.2078,2595.7,2595.0,7.0941]
[1726971329400,0.3775,2595.7,2595.0,7.0941]
[1726971329603,1.98585659,2595.9,2595.4,6.9078]
[1726971329810,3.2078,2596.0,2595.7,0.26963]
[1726971330013,3.2078,2596.0,2595.5,8.18874548]
[1726971330199,5.19365659,2596.6,2595.9,0.26961]
[1726971330398,5.19365659,2596.6,2595.8,7.8396598]
[1726971330399,0.26955,2596.5,2595.8,7.8396598]
[1726971330606,3.5853,2596.6,2595.8,6.308]
[1726971330806,0.26958,2596.2,2595.6,0.391]
[1726971331005,3.2078,2596.3,2595.6,3.26864]
[1726971331213,0.26959,2596.2,2595.6,2.999]
[1726971332106,3.47737,2596.3,2595.6,2.999]
[1726971332311,3.2078,2596.3,2595.6,2.999]
[1726971332611,0.26958,2596.2,2595.6,0.391]
[1726971332803,3.47737,2596.3,2595.6,2.998]
[1726971333007,0.26958,2596.2,2595.6,0.391]
[1726971333209,3.2078,2596.3,2595.6,0.66064]
[1726971333414,3.47738,2596.3,2595.6,1.03994]
[1726971333715,3.2078,2596.3,2595.7,0.26962]
[1726971333917,3.2078,2596.3,2595.8,3.2078]
[1726971334215,0.64704,2596.6,2596.0,0.26959]
[1726971334216,0.3775,2596.6,2596.0,0.26959]
[1726971334404,0.3775,2596.6,2595.8,0.26961]
[1726971334602,0.3775,2596.6,2596.0,2.607]
[1726971334804,3.2078,2596.5,2595.8,2.87661]
[1726971335006,3.2078,2596.5,2595.9,0.2696]
[1726971335208,3.2078,2596.5,2595.8,2.607]
[1726971335416,3.2078,2596.8,2595.9,3.2078]
[1726971335609,3.2078,2597.3,2596.5,3.2078]
[1726971335916,0.7697,2597.4,2596.6,0.7613]
[1726971336105,3.2078,2597.3,2596.6,3.3683]
[1726971336309,0.26949,2597.1,2596.6,2.9736]
[1726971336505,3.4773,2597.0,2596.6,2.9736]
[1726971336707,0.2695,2597.0,2596.6,2.9736]
[1726971337625,3.9775,2597.4,2596.6,2.9736]
[1726971337813,3.47729,2597.1,2596.6,2.9736]
[1726971338111,0.26949,2597.1,2596.6,2.9736]
[1726971338306,3.2078,2597.0,2596.6,2.9736]
[1726971338707,3.2078,2597.0,2596.6,0.3666]
[1726971339111,3.4773,2597.0,2596.6,0.3666]
[1726971339419,0.26951,2596.9,2596.4,3.2078]
[1726971340015,0.3994,2596.8,2596.4,3.2078]
[1726971340213,0.3994,2596.8,2596.4,3.47735]
[1726971340914,0.3994,2596.8,2596.1,3.7]
[1726971341216,3.5963,2596.7,2596.2,2.606]
[1726971341415,3.5963,2596.7,2596.3,0.26957]
[1726971342112,3.5963,2596.7,2596.3,0.26956]
[1726971342513,3.5963,2596.7,2596.4,0.26955]
[1726971342514,3.2078,2596.7,2596.4,0.26955]
[1726971342710,3.2078,2596.7,2596.4,0.26956]
[1726971342905,3.2078,2596.7,2596.3,2.87556]
[1726971343111,3.2078,2596.7,2596.3,2.606]
[1726971343520,3.2078,2596.7,2596.3,2.87557]
[1726971343906,3.2078,2596.7,2596.5,3.0]
[1726971344311,3.2078,2596.7,2596.6,3.8512]
[1726971344617,3.2078,2597.0,2596.6,0.26954]
[1726971344825,3.2078,2597.0,2596.5,3.3635]
[1726971345120,3.2078,2597.0,2596.8,3.0]
[1726971346020,3.2078,2597.0,2596.8,7.11991]
[1726971346207,3.2078,2597.4,2596.8,6.8504]
[1726971346407,3.2078,2597.4,2597.1,3.0]
[1726971346408,3.47726,2597.4,2597.1,3.0]
[1726971346610,3.2078,2597.4,2596.6,6.2078]
[1726971346811,3.2078,2597.3,2596.5,0.3635]
[1726971347011,3.2078,2597.0,2596.5,0.63304]
[1726971347218,0.2695,2597.0,2596.6,3.0]
[1726971347415,3.2078,2597.0,2596.6,3.0]
[1726971347817,0.2695,2597.0,2596.6,3.0]
[1726971348014,3.2078,2597.1,2596.9,3.0]
[1726971348213,7.54547,2598.1,2597.0,0.2695]
[1726971348214,3.2078,2597.4,2597.0,0.2695]
[1726971348420,3.2078,2597.4,2597.1,0.3766]
[1726971348719,3.47726,2597.4,2597.1,0.3766]
[1726971348911,3.47726,2597.4,2596.9,3.0]
[1726971348912,3.2078,2597.4,2596.9,3.0]
[1726971349114,3.2078,2597.4,2596.7,3.0]
[1726971349714,0.26952,2596.9,2596.5,3.415]
[1726971349912,0.26951,2597.0,2596.5,3.68454]
[1726971350109,0.3777,2596.9,2596.5,3.68454]
[1726971350312,0.3777,2596.9,2596.7,3.0]
[1726971351216,3.2078,2597.5,2596.8,4.12071]
[1726971351415,3.2078,2597.2,2596.8,0.26951]
[1726971352015,3.47727,2597.3,2596.9,3.2695]
[1726971352225,0.26948,2597.2,2596.9,3.0]
[1726971352525,0.26948,2597.2,2596.8,0.26952]
[1726971353317,0.26949,2597.1,2596.7,0.26952]
[1726971353525,3.2078,2597.3,2596.7,0.26952]
[1726971353823,0.26948,2597.2,2596.7,0.26952]
[1726971354028,3.2078,2597.3,2596.7,0.26952]
[1726971354029,0.26949,2597.1,2596.7,0.26952]
[1726971354225,0.26949,2597.1,2596.6,6.2078]
[1726971354226,0.3834,2597.1,2596.8,0.26952]
[1726971354523,3.2078,2597.3,2597.0,0.26949]
[1726971354825,3.47727,2597.3,2596.9,3.2695]
[1726971355818,0.26948,2597.2,2596.9,3.0]
[1726971356529,3.47727,2597.3,2596.9,3.0]
[1726971356722,3.47727,2597.3,2596.9,3.26951]
[1726971357721,3.2078,2597.3,2596.9,3.0]
[1726971358321,0.26949,2597.1,2596.9,3.0]
[1726971358722,0.2695,2597.0,2596.9,3.0]
[1726971358925,3.5714,2597.0,2596.5,0.3766]
[1726971359129,0.26952,2596.8,2596.5,0.3766]
[1726971359825,3.47732,2596.8,2596.5,0.3766]
[1726971361525,3.2078,2596.8,2596.3,3.0]
[1726971361722,0.26953,2596.7,2596.3,3.26957]
[1726971361914,3.2078,2596.8,2596.4,0.26955]
[1726971362118,3.2078,2596.8,2596.3,3.0]
[1726971362315,3.2078,2596.8,2596.6,3.0]